fUST/lending_fUST_20250814
["ID","MTS","AMOUNT","RATE_DAILY","PERIOD"]
[379135940,1755154254129,-151.0,0.00018736,2]
[379135941,1755154254139,-460.0,0.00018736,2]
[379135942,1755154254149,-460.0,0.00018736,2]
[379135943,1755154254158,-565.41,0.00018736,2]
[379135944,1755154254167,-1019.21,0.00018736,2]
[379135945,1755154254176,-460.0,0.00018736,2]
[379135946,1755154254185,-460.0,0.00018736,2]
[379135947,1755154254194,-460.0,0.00018736,2]
[379135948,1755154254203,-460.0,0.00018736,2]
[379135949,1755154254213,-460.0,0.00018736,2]
[379135950,1755154254222,-460.0,0.00018736,2]
[379135951,1755154254231,-468.50682789,0.00018736,2]
[379135952,1755154254240,-460.0,0.00018736,2]
[379135953,1755154254249,-460.0,0.00018736,2]
[379135954,1755154254259,-460.0,0.00018736,2]
[379135955,1755154254268,-460.0,0.00018736,2]
[379135956,1755154254278,-569.12,0.00018736,2]
[379135957,1755154254287,-460.0,0.00018736,2]
[379135958,1755154254296,-500.0,0.00018736,2]
[379135959,1755154254305,-460.0,0.00018736,2]
[379135960,1755154254315,-460.0,0.00018736,2]
[379135961,1755154254324,-460.0,0.00018736,2]
[379135962,1755154254333,-462.97208288,0.00018736,2]
[379135963,1755154254343,-982.57,0.00018736,2]
[379135964,1755154254353,-604.76,0.00018736,2]
[379135965,1755154254362,-267.70255945,0.00018736,2]
[379135966,1755154254371,-460.0,0.00018736,2]
[379135967,1755154254380,-701.1,0.00018736,2]
[379135968,1755154254388,-460.0,0.00018736,2]
[379135969,1755154254397,-460.0,0.00018736,2]
[379135970,1755154254406,-460.0,0.00018736,2]
[379135971,1755154254415,-1173.66,0.00018736,2]
[379135972,1755154254423,-460.0,0.00018736,2]
[379135973,1755154254432,-460.0,0.00018736,2]
[379135974,1755154254441,-460.0,0.00018736,2]
[379135975,1755154254449,-513.58,0.00018736,2]
[379135976,1755154254458,-151.0,0.00018737,2]
[379135977,1755154254467,-152.452138,0.00018737,2]
[379135978,1755154254476,-151.0,0.00018737,2]
[379135979,1755154254485,-174.65226,0.00018737,2]
[379135980,1755154254494,-174.65226,0.00018737,2]
[379135981,1755154254503,-151.0,0.00018737,2]
[379135982,1755154254512,-151.0,0.00018737,2]
[379135983,1755154254521,-455.073744,0.00018737,2]
[379135984,1755154254530,-455.073744,0.00018737,2]
[379135985,1755154254540,-460.0,0.00018737,2]
[379135986,1755154254549,-460.0,0.00018737,2]
[379135987,1755154254558,-460.0,0.00018737,2]
[379135988,1755154254568,-460.0,0.00018737,2]
[379135989,1755154254577,-558.69,0.00018737,2]
[379135990,1755154254587,-183.600232,0.00018737,2]
[379135991,1755154254596,-554.91,0.00018737,2]
[379135992,1755154254605,-183.600232,0.00018737,2]
[379135993,1755154254614,-460.0,0.00018737,2]
[379135994,1755154254622,-604.168898,0.00018737,2]
[379135995,1755154254630,-604.168898,0.00018737,2]
[379135996,1755154254639,-460.0,0.00018737,2]
[379135997,1755154254647,-165.838786,0.00018737,2]
[379135998,1755154254656,-151.0,0.00018738,2]
[379135999,1755154254666,-151.0,0.00018738,2]
[379136000,1755154254675,-151.0,0.00018738,2]
[379136001,1755154254684,-151.0,0.00018739,2]
[379136002,1755154254694,-151.0,0.00018739,2]
[379136003,1755154254703,-215.76998,0.00018739,2]
[379136004,1755154254712,-151.0,0.00018739,2]
[379136005,1755154254721,-151.0,0.00018739,2]
[379136006,1755154254730,-460.0,0.00018739,2]
[379136007,1755154254739,-460.0,0.00018739,2]
[379136008,1755154254748,-460.0,0.00018739,2]
[379136009,1755154254761,-460.0,0.00018739,2]
[379136010,1755154254781,-460.0,0.00018739,2]
[379136011,1755154254790,-238.016211,0.00018739,2]
[379136012,1755154254798,-174.65226,0.00018741,2]
[379136013,1755154254807,-174.65226,0.00018741,2]
[379136014,1755154254815,-2926.10854228,0.00018744,2]
[379136015,1755154254823,-508.633,0.00018744,2]
[379136016,1755154254832,-179.95222903,0.00018744,2]
[379136017,1755154254841,-500.0,0.00018773,2]
[379136018,1755154254850,-500.0,0.00018773,2]
[379136019,1755154254859,-320.31322084,0.00018773,2]
[379136020,1755154254868,-338.24592935,0.00018773,2]
[379136021,1755154254877,-603.83431306,0.00018773,2]
[379136022,1755154254887,-500.90979466,0.00018773,2]
[379136023,1755154254896,-500.0,0.00018773,2]
[379136024,1755154254907,-501.17085593,0.00018773,2]
[379136025,1755154254916,-571.04618409,0.00018773,2]
[379136026,1755154254925,-500.0,0.00018773,2]
[379136027,1755154254934,-500.0,0.00018773,2]
[379136028,1755154254943,-500.0,0.00018773,2]
[379136029,1755154254953,-501.32918472,0.00018773,2]
[379136030,1755154254962,-501.06397251,0.00018773,2]
[379136031,1755154254971,-431.16919614,0.00018773,2]
[379136032,1755154254980,-479.0480218,0.00018773,2]
[379136033,1755154254990,-278.1408019,0.00018773,2]
[379136034,1755154254999,-536.56572488,0.00018773,2]
[379136035,1755154255008,-500.0,0.00018773,2]
[379136036,1755154255017,-500.0,0.00018773,2]
[379136037,1755154255027,-500.0,0.00018773,2]
[379136038,1755154255036,-500.71225786,0.00018773,2]
[379136039,1755154255045,-500.0,0.00018773,2]
[379136040,1755154255055,-500.91868835,0.00018773,2]
[379136041,1755154255064,-500.4156804,0.00018773,2]
[379136042,1755154255073,-500.0,0.00018773,2]
[379136043,1755154255083,-500.0,0.00018773,2]
[379136044,1755154255093,-500.0,0.00018773,2]
[379136045,1755154255102,-500.0,0.00018773,2]
[379136046,1755154255112,-500.0,0.00018773,2]
[379136047,1755154255122,-500.0,0.00018773,2]
[379136048,1755154255136,-501.70449007,0.00018773,2]
[379136049,1755154255146,-501.81116805,0.00018773,2]
[379136050,1755154255155,-500.0,0.00018773,2]
[379136051,1755154255165,-615.63278151,0.00018773,2]
[379136052,1755154255175,-560.42093552,0.00018773,2]
[379136053,1755154255184,-500.0,0.00018773,2]
[379136054,1755154255194,-500.0,0.00018773,2]
[379136055,1755154255203,-501.54704497,0.00018773,2]
[379136056,1755154255212,-500.0,0.00018773,2]
[379136057,1755154255221,-500.0,0.00018773,2]
[379136058,1755154255231,-500.0,0.00018773,2]
[379136059,1755154255240,-500.0,0.00018773,2]
[379136060,1755154255249,-500.0,0.00018773,2]
[379136061,1755154255258,-460.45649248,0.00018773,2]
[379136062,1755154255267,-500.0,0.00018773,2]
[379136063,1755154255276,-500.0,0.00018773,2]
[379136064,1755154255286,-500.0,0.00018773,2]
[379136065,1755154255295,-500.0,0.00018773,2]
[379136066,1755154255304,-507.53751155,0.00018773,2]
[379136067,1755154255313,-469.255848,0.00018773,2]
[379136068,1755154255322,-469.255848,0.00018773,2]
[379136069,1755154255331,-151.0,0.000188,2]
[379136070,1755154255341,-317.0,0.00018802,2]
[379136071,1755154255350,-973.41282193,0.00018813,2]
[379136072,1755154255365,-4600.72573612,0.00018813,2]
[379136073,1755154255375,-293.24525804,0.00018864,2]
[379136074,1755154255387,-160.78933022,0.00018864,2]
[379136075,1755154255396,-198.0,0.00018864,2]
[379136076,1755154255405,-151.0,0.00018864,2]
[379136077,1755154255415,-151.0,0.00018864,2]
[379136078,1755154255424,-151.0,0.00018864,2]
[379136079,1755154255434,-151.0,0.00018864,2]
[379136080,1755154255443,-151.0,0.000189,2]
[379136081,1755154255453,-267.225432,0.00018991,2]
[379136082,1755154255462,-205.518455,0.00018991,2]
[379136083,1755154255471,-205.518455,0.00018991,2]
[379136084,1755154255481,-990.71,0.00018991,2]
[379136085,1755154255490,-636.0,0.00018991,2]
[379136086,1755154255499,-2157.962,0.00018991,2]
[379136087,1755154255508,-460.0,0.00019,2]
[379136088,1755154255517,-460.0,0.00019,2]
[379136089,1755154255527,-460.0,0.00019,2]
[379136090,1755154255536,-262.44091436,0.00019,2]
[379136091,1755154255547,-460.0,0.00019,2]
[379136092,1755154255557,-460.0,0.00019,2]
[379136093,1755154255566,-460.0,0.00019,2]
[379136094,1755154255575,-460.0,0.00019,2]
[379136095,1755154255584,-482.48,0.00019,2]
[379136096,1755154255594,-460.0,0.00019,2]
[379136097,1755154255603,-479.16517373,0.00019,2]
[379136098,1755154255613,-460.0,0.00019,2]
[379136099,1755154255622,-460.0,0.00019,2]
[379136100,1755154255633,-502.26,0.00019,2]
[379136101,1755154255643,-519.45,0.00019,2]
[379136102,1755154255652,-460.0,0.00019,2]
[379136103,1755154255662,-554.16,0.00019,2]
[379136104,1755154255671,-460.0,0.00019,2]
[379136105,1755154255680,-586.33,0.00019,2]
[379136106,1755154255691,-460.0,0.00019,2]
[379136107,1755154255700,-542.49,0.00019,2]
[379136108,1755154255710,-468.60483915,0.00019,2]
[379136109,1755154255721,-372.66730952,0.00019,2]
[379136110,1755154255729,-543.59132667,0.00019,2]
[379136111,1755154255739,-697.23,0.00019003,2]
[379136112,1755154255750,-966.38,0.00019003,2]
[379136113,1755154255761,-611.61,0.00019003,2]
[379136114,1755154255771,-2512.77,0.00019003,2]
[379136115,1755154255780,-4872.16,0.00019003,2]
[379136116,1755154255789,-770.29,0.00019003,2]
[379136117,1755154255798,-460.0,0.00019004,2]
[379136118,1755154255809,-460.0,0.00019004,2]
[379136119,1755154255818,-460.0,0.00019004,2]
[379136120,1755154255827,-553.12,0.00019004,2]
[379136121,1755154255838,-479.68,0.00019004,2]
[379136122,1755154255848,-2996.79,0.00019004,2]
[379136123,1755154255857,-1004.08,0.00019004,2]
[379136124,1755154255867,-1063.5,0.00019004,2]
[379136125,1755154255876,-3975.35,0.00019004,2]
[379136126,1755154255887,-460.0,0.00019004,2]
[379136127,1755154255897,-1979.56,0.00019004,2]
[379136128,1755154255906,-3282.99,0.00019004,2]
[379136129,1755154255916,-460.0,0.00019004,2]
[379136130,1755154255925,-460.0,0.00019004,2]
[379136131,1755154255935,-745.41,0.00019004,2]
[379136132,1755154255944,-513.78,0.00019004,2]
[379136133,1755154255954,-2910.96,0.00019004,2]
[379136134,1755154255964,-557.11,0.00019004,2]
[379136135,1755154255973,-460.0,0.00019004,2]
[379136136,1755154255983,-1131.14,0.00019004,2]
[379136137,1755154255992,-753.55,0.00019004,2]
[379136138,1755154256001,-460.0,0.00019005,2]
[379136139,1755154256010,-460.0,0.00019005,2]
[379136140,1755154256019,-704.83,0.00019005,2]
[379136141,1755154256029,-460.0,0.00019005,2]
[379136142,1755154256038,-460.0,0.00019005,2]
[379136143,1755154256047,-1018.37577019,0.00019005,2]
[379136144,1755154256453,-460.0,0.00018175,2]
[379136145,1755154256472,-199.2907214,0.00018178,2]
[379136146,1755154256503,-275.85244851,0.00018178,2]
[379136147,1755154256513,-819.49,0.00018182,2]
[379136148,1755154256523,-283.02855083,0.00018185,2]
[379136149,1755154256532,-460.0,0.00018449,2]
[379136150,1755154256543,-819.49,0.00018456,2]
[379136151,1755154256552,-151.0,0.00018457,2]
[379136152,1755154256561,-151.0,0.00018459,2]
[379136153,1755154256571,-151.0,0.00018462,2]
[379136154,1755154256580,-460.0,0.00018723,2]
[379136155,1755154256590,-819.49,0.0001873,2]
[379136156,1755154256599,-151.0,0.00018731,2]
[379136157,1755154256609,-151.0,0.00018733,2]
[379136158,1755154256618,-460.0,0.00018997,2]
[379136159,1755154256627,-819.49,0.00019004,2]
[379136160,1755154256637,-294.27422981,0.00019005,2]
[379136161,1755154256647,-2404.29,0.00019005,2]
[379136162,1755154256657,-1125.78,0.00019005,2]
[379136163,1755154256666,-460.0,0.00019005,2]
[379136164,1755154256675,-460.0,0.00019005,2]
[379136165,1755154256684,-460.0,0.00019005,2]
[379136166,1755154256694,-804.85,0.00019005,2]
[379136167,1755154256703,-1391.19,0.00019005,2]
[379136168,1755154256712,-460.0,0.00019005,2]
[379136169,1755154256721,-151.783754,0.00019005,2]
[379136170,1755154256731,-460.0,0.00019005,2]
[379136171,1755154256930,-460.0,0.00019005,2]
[379136172,1755154256940,-460.0,0.00019005,2]
[379136173,1755154256949,-1092.45,0.00019005,2]
[379136174,1755154256959,-558.88455351,0.00019005,2]
[379136175,1755154257294,-460.0,0.00018178,2]
[379136176,1755154257303,-460.0,0.00018178,2]
[379136177,1755154257313,-460.0,0.00018184,2]
[379136178,1755154257322,-460.0,0.00018185,2]
[379136179,1755154257332,-460.0,0.00018187,2]
[379136180,1755154257341,-151.0,0.00018773,2]
[379136181,1755154257350,-66.56544649,0.00019005,2]
[379136182,1755154257359,-460.0,0.00019005,2]
[379136183,1755154257369,-460.0,0.00019005,2]
[379136184,1755154257378,-1445.8,0.00019005,2]
[379136185,1755154257387,-1080.13,0.00019005,2]
[379136186,1755154257397,-460.0,0.00019005,2]
[379136187,1755154257406,-740.27,0.00019005,2]
[379136188,1755154257415,-460.0,0.00019005,2]
[379136189,1755154257425,-460.0,0.00019005,2]
[379136190,1755154257434,-547.75,0.00019005,2]
[379136191,1755154257444,-1023.92,0.00019005,2]
[379136192,1755154257453,-1574.22,0.00019005,2]
[379136193,1755154257462,-460.0,0.00019005,2]
[379136194,1755154257472,-965.22,0.00019005,2]
[379136195,1755154257481,-460.0,0.00019005,2]
[379136196,1755154257490,-460.0,0.00019005,2]
[379136197,1755154257500,-460.0,0.00019005,2]
[379136198,1755154257509,-460.0,0.00019005,2]
[379136199,1755154257518,-499.2154405,0.00019005,2]
[379136200,1755154257530,-394.6245595,0.00019005,2]
[379136201,1755154257540,-460.0,0.00019005,2]
[379136202,1755154257549,-639.31,0.00019005,2]
[379136203,1755154257558,-460.0,0.00019005,2]
[379136204,1755154257568,-502.03,0.00019005,2]
[379136205,1755154257577,-460.0,0.00019005,2]
[379136206,1755154257586,-460.0,0.00019005,2]
[379136207,1755154257595,-460.0,0.00019005,2]
[379136208,1755154257604,-719.19,0.00019005,2]
[379136209,1755154257614,-505.71,0.00019005,2]
[379136210,1755154257623,-1423.27,0.00019005,2]
[379136211,1755154257633,-587.73911418,0.00019005,2]
[379136212,1755154257643,-460.0,0.00019005,2]
[379136213,1755154257652,-460.0,0.00019005,2]
[379136214,1755154257661,-460.0,0.00019005,2]
[379136215,1755154257671,-1392.94,0.00019006,2]
[379136216,1755154257680,-1207.07,0.00019006,2]
[379136217,1755154257690,-471.24,0.00019006,2]
[379136218,1755154257700,-460.0,0.00019006,2]
[379136219,1755154257710,-1298.58,0.00019006,2]
[379136220,1755154257719,-3752.6624759,0.00019006,2]
[379136221,1755154257731,-9755.4375241,0.00019006,2]
[379136222,1755154257740,-1399.64,0.00019006,2]
[379136223,1755154257750,-706.06,0.00019006,2]
[379136224,1755154257762,-2572.32,0.00019006,2]
[379136225,1755154257771,-4245.85034119,0.00019006,2]
[379136226,1755154257782,-10579.02965881,0.00019006,2]
[379136227,1755154257792,-3664.5,0.00019006,2]
[379136228,1755154257803,-7359.87485835,0.00019006,2]
[379136229,1755154257814,-1815.33738621,0.00019006,2]
[379136230,1755154298924,-587.35,0.00018175,2]
[379136231,1755154298954,-460.0,0.00018175,2]
[379136232,1755154298985,-463.47040487,0.00018178,2]
[379136233,1755154299018,-3312.79,0.00018181,2]
[379136234,1755154299259,-2497.32,0.00018181,2]
[379136235,1755154299288,-886.25,0.00018181,2]
[379136236,1755154299316,-460.0,0.00018181,2]
[379136237,1755154299344,-300.0,0.00018182,2]
[379136238,1755154299372,-460.0,0.00018182,2]
[379136239,1755154299399,-332.86,0.00018182,2]
[379136240,1755154299434,-127.14,0.00018182,2]
[379136241,1755154299462,-1204.83,0.00018182,2]
[379136242,1755154306060,5000.0,0.00018182,2]
[379136243,1755154306688,478.31743784,0.00018178,2]
[379136244,1755154307832,460.0,0.00018182,2]
[379136245,1755154309020,1397.74256216,0.00018181,2]
[379136246,1755154309043,251.89743784,0.00018181,2]
[379136247,1755154314196,5000.0,0.00018182,2]
[379136248,1755154319423,616.89,0.00018182,2]
[379136250,1755154323575,4131.21256216,0.00018182,2]
[379136251,1755154323599,868.78743784,0.00018182,2]
[379136252,1755154323779,300.0,0.00018182,2]
[379136253,1755154326005,2735.83,0.00018181,2]
[379136254,1755154328590,683.39,0.00018178,2]
[379136255,1755154331576,5000.0,0.00018182,2]
[379136260,1755154337234,411.99256216,0.00018175,2]
[379136261,1755154337258,48.00743784,0.00018175,2]
[379136262,1755154338761,853.27,0.00018182,2]
[379136263,1755154339275,460.0,0.00018181,2]
[379136264,1755154339919,5000.0,0.00018182,2]
[379136265,1755154340657,465.980349,0.00018182,2]
[379136266,1755154347902,3172.74221316,0.00018182,2]
[379136267,1755154347926,1827.25778684,0.00018182,2]
[379136268,1755154349044,460.0,0.00018181,2]
[379136270,1755154353580,460.0,0.00018175,2]
[379136271,1755154355777,180.21299072,0.00018083,2]
[379136272,1755154356289,460.0,0.00018182,2]
[379136273,1755154356741,180.2129907,0.00018083,2]
[379136274,1755154356867,956.56467586,0.00018182,2]
[379136275,1755154357182,180.2129907,0.00018084,2]
[379136276,1755154357590,180.2129907,0.00018084,2]
[379136277,1755154358301,180.2129907,0.00018084,2]
[379136280,1755154364307,460.0,0.00018178,2]
[379136281,1755154365739,4475.11258378,0.00018182,2]
[379136282,1755154365763,524.88741622,0.00018182,2]
[379136283,1755154372427,621.17,0.00018181,2]
[379136284,1755154374595,460.0,0.00018182,2]
[379136285,1755154378039,460.0,0.00018178,2]
[379136286,1755154381039,5000.0,0.00018182,2]
[379136287,1755154382299,460.0,0.00018178,2]
[379136288,1755154382976,300.0,0.00018182,2]
[379136289,1755154386626,460.0,0.00018181,2]
[379136290,1755154388954,460.0,0.00018178,2]
[379136291,1755154393526,581.03,0.00018177,2]
[379136292,1755154398215,672.91258378,0.00018182,2]
[379136293,1755154398239,4327.08741622,0.00018182,2]
[379136294,1755154399945,5672.91258378,0.00018083,2]
[379136295,1755154399968,10000.0,0.00018083,2]
[379136296,1755154399991,10000.0,0.00018083,2]
[379136297,1755154400014,2541.81374957,0.00018083,2]
[379136298,1755154404590,460.0,0.00018178,2]
[379136299,1755154404840,490.13,0.00018181,2]
[379136300,1755154408443,487.97419002,0.00018182,2]
[379136301,1755154410481,784.19,0.00018182,2]
[379136302,1755154412744,460.0,0.00018178,2]
[379136303,1755154413195,2547.37,0.00018181,2]
[379136304,1755154413706,2228.52206041,0.00018182,2]
[379136305,1755154413730,1540.6461773,0.00018182,2]
[379136306,1755154416228,767.48,0.00018177,2]
[379136307,1755154423242,961.78,0.00018181,2]
[379136308,1755154424141,460.0,0.00018182,2]
[379136309,1755154426292,460.0,0.00018181,2]
[379136310,1755154426608,1147.36,0.00018175,2]
[379136311,1755154426675,460.0,0.00018178,2]
[379136312,1755154429279,460.0,0.00018178,2]
[379136313,1755154429536,460.0,0.00018182,2]
[379136314,1755154430159,536.56,0.00018177,2]
[379136315,1755154431781,460.0,0.00018181,2]
[379136316,1755154432981,723.35,0.00018181,2]
[379136317,1755154433704,1562.8238227,0.00018177,2]
[379136318,1755154433729,644.1361773,0.00018177,2]
[379136319,1755154435199,460.0,0.00018178,2]
[379136320,1755154435389,460.0,0.00018178,2]
[379136321,1755154438253,460.0,0.00018182,2]
[379136322,1755154438954,460.0,0.00018175,2]
[379136323,1755154441824,1224.73,0.00018181,2]
[379136324,1755154443925,300.0,0.00018182,2]
[379136325,1755154447953,2094.01,0.00018175,2]
[379136326,1755154448603,460.0,0.00018182,2]
[379136327,1755154451763,460.0,0.00018181,2]
[379136328,1755154453230,460.0,0.00018182,2]
[379136329,1755154456738,460.0,0.00018178,2]
[379136330,1755154456926,1033.69,0.00018175,2]
[379136331,1755154458029,692.04,0.00018181,2]
[379136332,1755154460063,331.3938227,0.00018178,2]
[379136333,1755154460086,128.6061773,0.00018178,2]
[379136334,1755154462250,1306.97,0.00018182,2]
[379136335,1755154463745,460.0,0.00018178,2]
[379136336,1755154464605,460.0,0.00018181,2]
[379136337,1755154469791,460.0,0.00018178,2]
[379136338,1755154471109,460.0,0.00018182,2]
[379136339,1755154475127,460.0,0.00018178,2]
[379136340,1755154476972,460.0,0.00018178,2]
[379136341,1755154477740,460.0,0.00018178,2]
[379136342,1755154479630,460.0,0.00018181,2]
[379136343,1755154481019,460.0,0.00018182,2]
[379136344,1755154481520,460.0,0.00018182,2]
[379136345,1755154485511,503.23,0.00018181,2]
[379136346,1755154492060,460.0,0.00018181,2]
[379136347,1755154494489,460.0,0.00018178,2]
[379136348,1755154496533,559.17958988,0.00018182,2]
[379136349,1755154498161,1278.0,0.00018181,2]
[379136350,1755154499156,460.0,0.00018177,2]
[379136351,1755154499383,244.01423282,0.00018178,2]
[379136352,1755154499407,215.98576718,0.00018178,2]
[379136353,1755154499990,1276.76,0.00018182,2]
[379136354,1755154501260,4471.35,0.00018177,2]
[379136355,1755154502384,300.0,0.00018182,2]
[379136356,1755154508801,1108.08,0.00018182,2]
[379136357,1755154509875,2627.82423282,0.00018182,2]
[379136358,1755154509900,455.63492179,0.00018182,2]
[379136359,1755154510114,460.0,0.00018177,2]
[379136360,1755154511524,708.72,0.00018177,2]
[379136361,1755154518012,5000.0,0.00018182,2]
[379136362,1755154521242,460.0,0.00018175,2]
[379136363,1755154521645,654.81,0.00018181,2]
[379136364,1755154528277,460.0,0.00018182,2]
[379136365,1755154529289,460.0,0.00018177,2]
[379136366,1755154529653,905.8,0.00018181,2]
[379136367,1755154531124,435.03507821,0.00018177,2]
[379136368,1755154531151,24.96492179,0.00018177,2]
[379136369,1755154533214,460.0,0.00018175,2]
[379136370,1755154533926,460.0,0.00018182,2]
[379136371,1755154534033,5000.0,0.00018182,2]
[379136372,1755154537326,460.0,0.00018181,2]
[379136373,1755154538134,533.59,0.00018177,2]
[379136374,1755154539949,460.0,0.00018181,2]
[379136375,1755154540606,460.0,0.00018175,2]
[379136378,1755154543504,2141.44507821,0.00018083,2]
[379136379,1755154543532,10000.0,0.00018083,2]
[379136380,1755154543557,10000.0,0.00018083,2]
[379136381,1755154543581,6552.43464522,0.00018083,2]
[379136382,1755154543605,10000.0,0.00018083,2]
[379136383,1755154543629,10000.0,0.00018083,2]
[379136384,1755154543835,10000.0,0.00018083,2]
[379136385,1755154543862,10000.0,0.00018083,2]
[379136386,1755154543887,1306.12027657,0.00018083,2]
[379136387,1755154545450,225.57727276,0.00018083,2]
[379136388,1755154549937,5000.0,0.00018174,2]
[379136391,1755154558737,3468.30245067,0.00018174,2]
[379136392,1755154558760,969.28568832,0.00018174,2]
[379136393,1755154567085,5000.0,0.00018174,2]
[379136394,1755154583259,4030.71431168,0.00018174,2]
[379136395,1755154583283,969.28568832,0.00018174,2]
[379136397,1755154598661,5000.0,0.00018174,2]
[379136399,1755154614686,4030.71431168,0.00018174,2]
[379136400,1755154614711,969.28568832,0.00018174,2]
[379136401,1755154659113,2300.0,0.0001504,2]
[379136402,1755154662919,2300.0,0.0001641,2]
[379136403,1755154667135,2300.0,0.0001778,2]
[379136404,1755154673453,2130.71431168,0.00017181,2]
[379136405,1755154673475,7869.28568832,0.00017181,2]
[379136406,1755154682417,300.0,0.00018174,2]
[379136407,1755154706985,1830.71431168,0.00018085,2]
[379136408,1755154707010,10000.0,0.00018085,2]
[379136409,1755154707034,9533.56278363,0.00018085,2]
[379136410,1755154719487,466.43721637,0.00018174,2]
[379136411,1755154719512,1560.90839397,0.00018174,2]
[379136415,1755154742675,300.0,0.00018174,2]
[379136416,1755154774559,8139.09160603,0.00017181,2]
[379136417,1755154774582,10000.0,0.00017181,2]
[379136418,1755154774605,10000.0,0.00017181,2]
[379136419,1755154774628,10000.0,0.00017181,2]
[379136420,1755154774650,10000.0,0.00017181,2]
[379136421,1755154774672,10000.0,0.00017181,2]
[379136422,1755154774694,807.56744787,0.00017181,2]
[379136423,1755154795761,870.880624,0.00018077,2]
[379136424,1755154802791,300.0,0.00018174,2]
[379136427,1755154863700,300.0,0.00018174,2]
[379136428,1755154870315,7721.55192813,0.00018082,2]
[379136429,1755154870339,10000.0,0.00018082,2]
[379136430,1755154870362,10000.0,0.00018082,2]
[379136431,1755154870385,10000.0,0.00018082,2]
[379136432,1755154870408,10000.0,0.00018082,2]
[379136433,1755154870432,10000.0,0.00018082,2]
[379136434,1755154870456,10000.0,0.00018082,2]
[379136435,1755154870479,9450.51355003,0.00018082,2]
[379136436,1755154871945,317.051555,0.00013699,2]
[379136437,1755154872114,157.65818684,0.00018082,2]
[379136441,1755154901771,74.77670813,0.00018174,2]
[379136442,1755154901797,900.22329187,0.00018174,2]
[379136445,1755154923229,300.0,0.00018174,2]
[379136446,1755154926391,213.66417539,0.00018075,2]
[379136447,1755154926594,213.66417538,0.00018077,2]
[379136449,1755154967667,294.65,0.00018171,3]
[379136450,1755154978420,883.95,0.00018171,3]
[379136451,1755154982582,300.0,0.00018174,2]
[379136452,1755155034972,6893.84835736,0.00018078,2]
[379136453,1755155034997,10000.0,0.00018078,2]
[379136454,1755155035026,10000.0,0.00018078,2]
[379136455,1755155035071,10000.0,0.00018078,2]
[379136456,1755155035097,10000.0,0.00018078,2]
[379136457,1755155035121,10000.0,0.00018078,2]
[379136458,1755155035144,10000.0,0.00018078,2]
[379136459,1755155035168,10000.0,0.00018078,2]
[379136460,1755155035191,3106.15164264,0.00018078,2]
[379136461,1755155043848,300.0,0.00018174,2]
[379136462,1755155053945,468.39082711,0.00018,2]
[379136463,1755155072548,762.020546,0.00018075,2]
[379136464,1755155081562,460.0,0.00018174,2]